[Event "*** SCC Grand Prix: Titled Tuesday Blitz"]
[Site "Chess.com"]
[Date "2020.07.14"]
[Round "6"]
[White "oskariot"]
[Black "Bodnar_Mykola"]
[Result "1-0"]
[WhiteElo "2651"]
[BlackElo "2481"]
[TimeControl "180+1"]
[EndTime "11:08:05 PDT"]
[Termination "oskariot won on time"]

1. g3 {[%clk 0:03:00.9]} 1... Nf6 {[%clk 0:02:59.3]} 2. Bg2 {[%clk 0:03:01.8]}
2... c6 {[%clk 0:02:59.6]} 3. a4 {[%clk 0:03:02.3]} 3... d5 {[%clk 0:02:59.9]}
4. a5 {[%clk 0:03:02.4]} 4... e5 {[%clk 0:02:54.5]} 5. b3 {[%clk 0:03:01.3]}
5... Bd6 {[%clk 0:02:53.1]} 6. Bb2 {[%clk 0:03:01.5]} 6... O-O {[%clk
0:02:51.8]} 7. e3 {[%clk 0:03:00.1]} 7... Bb4 {[%clk 0:02:43.7]} 8. Bc3 {[%clk
0:02:58.8]} 8... Bxc3 {[%clk 0:02:42.3]} 9. Nxc3 {[%clk 0:02:58.8]} 9... Re8
{[%clk 0:02:38.4]} 10. d4 {[%clk 0:02:54.8]} 10... Bg4 {[%clk 0:02:35.2]} 11.
Nge2 {[%clk 0:02:52.3]} 11... exd4 {[%clk 0:02:27.4]} 12. Qxd4 {[%clk
0:02:51.6]} 12... Nbd7 {[%clk 0:02:26.9]} 13. h3 {[%clk 0:02:51]} 13... Bxe2
{[%clk 0:02:24.8]} 14. Nxe2 {[%clk 0:02:51.9]} 14... a6 {[%clk 0:02:24.3]} 15.
O-O {[%clk 0:02:49.2]} 15... Qe7 {[%clk 0:02:21.4]} 16. c4 {[%clk 0:02:41.2]}
16... dxc4 {[%clk 0:02:17]} 17. Qxc4 {[%clk 0:02:42.1]} 17... Qc5 {[%clk
0:02:13.1]} 18. Qxc5 {[%clk 0:02:32.4]} 18... Nxc5 {[%clk 0:02:14]} 19. Nd4
{[%clk 0:02:33.3]} 19... Rad8 {[%clk 0:02:10.9]} 20. Rfc1 {[%clk 0:02:31.5]}
20... Rxd4 {[%clk 0:02:06.5]} 21. Rxc5 {[%clk 0:02:29.7]} 21... Rb4 {[%clk
0:02:06.5]} 22. Rc3 {[%clk 0:02:22.8]} 22... Rd8 {[%clk 0:02:04]} 23. g4 {[%clk
0:02:21.8]} 23... Rd2 {[%clk 0:02:02.9]} 24. Ra4 {[%clk 0:02:00.5]} 24... Rxa4
{[%clk 0:01:53.5]} 25. bxa4 {[%clk 0:02:00.6]} 25... Nd7 {[%clk 0:01:54.4]} 26.
f4 {[%clk 0:01:51.4]} 26... Kf8 {[%clk 0:01:53]} 27. e4 {[%clk 0:01:48.3]} 27...
f6 {[%clk 0:01:49.6]} 28. h4 {[%clk 0:01:42.9]} 28... Rd4 {[%clk 0:01:46.6]} 29.
g5 {[%clk 0:01:33.1]} 29... Rxa4 {[%clk 0:01:40.7]} 30. Bh3 {[%clk 0:01:28.9]}
30... Ke7 {[%clk 0:01:38.1]} 31. gxf6+ {[%clk 0:01:16.1]} 31... gxf6 {[%clk
0:01:39]} 32. Rg3 {[%clk 0:01:15.3]} 32... Nc5 {[%clk 0:01:38.8]} 33. Rg7+
{[%clk 0:01:14.8]} 33... Kd6 {[%clk 0:01:38.8]} 34. Bf5 {[%clk 0:01:09.3]} 34...
h5 {[%clk 0:01:13.5]} 35. Kg2 {[%clk 0:00:59.2]} 35... Rxa5 {[%clk 0:01:10.1]}
36. Rg6 {[%clk 0:00:52.3]} 36... Ke7 {[%clk 0:01:05]} 37. Rg7+ {[%clk
0:00:52.3]} 37... Kf8 {[%clk 0:01:04.8]} 38. Rh7 {[%clk 0:00:52.5]} 38... Ra4
{[%clk 0:01:00.8]} 39. Kf3 {[%clk 0:00:52.3]} 39... Ra3+ {[%clk 0:01:00.6]} 40.
Ke2 {[%clk 0:00:50.7]} 40... a5 {[%clk 0:00:54.6]} 41. e5 {[%clk 0:00:47.1]}
41... fxe5 {[%clk 0:00:48.8]} 42. fxe5 {[%clk 0:00:48]} 42... Ra4 {[%clk
0:00:41.3]} 43. Kf3 {[%clk 0:00:44.1]} 43... Ra3+ {[%clk 0:00:36.9]} 44. Kf4
{[%clk 0:00:28.8]} 44... Nd3+ {[%clk 0:00:31.4]} 45. Kg5 {[%clk 0:00:28.1]}
45... Kg8 {[%clk 0:00:13.3]} 46. e6 {[%clk 0:00:21.1]} 46... Nc5 {[%clk
0:00:08.8]} 47. Rc7 {[%clk 0:00:14.7]} 47... Nxe6+ {[%clk 0:00:04.3]} 48. Bxe6+
{[%clk 0:00:15.6]} 48... Kf8 {[%clk 0:00:04.4]} 49. Rxb7 {[%clk 0:00:14.9]}
49... Re3 {[%clk 0:00:05.3]} 50. Bf5 {[%clk 0:00:14.8]} 50... a4 {[%clk
0:00:04.2]} 51. Kxh5 {[%clk 0:00:14.5]} 51... a3 {[%clk 0:00:04.2]} 52. Ra7
{[%clk 0:00:15]} 52... Re5 {[%clk 0:00:04.3]} 53. Kg6 {[%clk 0:00:13.9]} 53...
Re3 {[%clk 0:00:05.2]} 54. h5 {[%clk 0:00:13.9]} 54... Rg3+ {[%clk 0:00:05.5]}
55. Kf6 {[%clk 0:00:14.4]} 55... Re3 {[%clk 0:00:04]} 56. h6 {[%clk 0:00:12.7]}
56... Re8 {[%clk 0:00:01.6]} 57. h7 {[%clk 0:00:09.6]} 1-0

[Event "*** SCC Grand Prix: Titled Tuesday Blitz"]
[Site "Chess.com"]
[Date "2020.07.14"]
[Round "6"]
[White "GukeshDommaraju"]
[Black "BillieKimbah"]
[Result "0-1"]
[WhiteElo "2728"]
[BlackElo "2908"]
[TimeControl "180+1"]
[EndTime "11:08:07 PDT"]
[Termination "BillieKimbah won by resignation"]

1. d4 {[%clk 0:03:00.9]} 1... Nf6 {[%clk 0:02:59.1]} 2. c4 {[%clk 0:03:00.8]}
2... e6 {[%clk 0:02:59.2]} 3. Nf3 {[%clk 0:03:01]} 3... d5 {[%clk 0:02:59]} 4.
Nc3 {[%clk 0:03:00.7]} 4... c6 {[%clk 0:02:58.6]} 5. Bg5 {[%clk 0:03:00.1]} 5...
h6 {[%clk 0:02:56.4]} 6. Bh4 {[%clk 0:02:59.7]} 6... dxc4 {[%clk 0:02:53.2]} 7.
e4 {[%clk 0:02:59.6]} 7... g5 {[%clk 0:02:53.4]} 8. Bg3 {[%clk 0:02:59.3]} 8...
b5 {[%clk 0:02:54.1]} 9. Be2 {[%clk 0:02:58.3]} 9... Bb7 {[%clk 0:02:50.6]} 10.
e5 {[%clk 0:02:58.3]} 10... Nd5 {[%clk 0:02:48.4]} 11. O-O {[%clk 0:02:58.5]}
11... Nxc3 {[%clk 0:02:45.2]} 12. bxc3 {[%clk 0:02:59.4]} 12... c5 {[%clk
0:02:45.8]} 13. a4 {[%clk 0:02:59.5]} 13... a6 {[%clk 0:02:44.7]} 14. Qb1 {[%clk
0:02:59.4]} 14... g4 {[%clk 0:02:41.4]} 15. Nh4 {[%clk 0:02:58]} 15... Be7
{[%clk 0:02:39.5]} 16. Ng6 {[%clk 0:02:51.4]} 16... fxg6 {[%clk 0:02:26.2]} 17.
Qxg6+ {[%clk 0:02:52.3]} 17... Kd7 {[%clk 0:02:26.7]} 18. dxc5 {[%clk
0:02:06.8]} 18... Qg8 {[%clk 0:02:24]} 19. Rfd1+ {[%clk 0:01:57.8]} 19... Kc7
{[%clk 0:01:32.2]} 20. Qb1 {[%clk 0:01:57.1]} 20... Qh7 {[%clk 0:01:24.6]} 21.
axb5 {[%clk 0:01:11]} 21... Qxb1 {[%clk 0:01:20.2]} 22. Raxb1 {[%clk 0:01:10.5]}
22... axb5 {[%clk 0:01:18.4]} 23. Rxb5 {[%clk 0:01:10.3]} 23... Bc6 {[%clk
0:01:13.1]} 24. Rb4 {[%clk 0:01:05.9]} 24... h5 {[%clk 0:01:05]} 25. Bxc4 {[%clk
0:01:05.9]} 25... Na6 {[%clk 0:01:00.5]} 26. Rbb1 {[%clk 0:00:37.6]} 26... Nxc5
{[%clk 0:00:59.8]} 27. Bf4 {[%clk 0:00:32.3]} 27... Ra4 {[%clk 0:00:51.3]} 28.
Rd4 {[%clk 0:00:31.8]} 28... Rd8 {[%clk 0:00:42]} 29. Bf1 {[%clk 0:00:24.4]}
29... Rdxd4 {[%clk 0:00:36.3]} 30. cxd4 {[%clk 0:00:25.3]} 30... Rxd4 {[%clk
0:00:36.8]} 31. Be3 {[%clk 0:00:25.7]} 31... Ra4 {[%clk 0:00:28.9]} 32. Rc1
{[%clk 0:00:25.1]} 32... Ra5 {[%clk 0:00:28.8]} 33. h3 {[%clk 0:00:21.2]} 33...
gxh3 {[%clk 0:00:28.5]} 34. g3 {[%clk 0:00:21.7]} 34... Nd7 {[%clk 0:00:24.8]}
35. Bxh3 {[%clk 0:00:18.9]} 35... Nxe5 {[%clk 0:00:23.5]} 36. Bf4 {[%clk
0:00:19.2]} 36... Kd7 {[%clk 0:00:18.6]} 37. Rd1+ {[%clk 0:00:05.4]} 37... Ke8
{[%clk 0:00:16.9]} 38. Bxe6 {[%clk 0:00:03.5]} 38... Nf3+ {[%clk 0:00:17.1]} 39.
Kf1 {[%clk 0:00:03.8]} 39... Be4 {[%clk 0:00:11.1]} 40. Bc4 {[%clk 0:00:03.3]}
40... Rc5 {[%clk 0:00:10.2]} 41. Be2 {[%clk 0:00:02.9]} 41... Kf7 {[%clk
0:00:09.3]} 42. Kg2 {[%clk 0:00:02.3]} 42... Nd4+ {[%clk 0:00:08.4]} 43. f3
{[%clk 0:00:02.8]} 43... Nxe2 {[%clk 0:00:07.4]} 44. fxe4 {[%clk 0:00:03.7]}
44... Nc3 {[%clk 0:00:07]} 45. Re1 {[%clk 0:00:03.3]} 45... Kg6 {[%clk
0:00:05.9]} 46. e5 {[%clk 0:00:04.2]} 46... Nd5 {[%clk 0:00:05.5]} 47. Kf3
{[%clk 0:00:05.1]} 47... Kf5 {[%clk 0:00:04.6]} 48. Rh1 {[%clk 0:00:04.9]} 48...
Rc3+ {[%clk 0:00:04.9]} 49. Ke2 {[%clk 0:00:04.9]} 49... Kg4 {[%clk 0:00:04.5]}
50. Bd2 {[%clk 0:00:04.2]} 50... Rxg3 {[%clk 0:00:03.7]} 51. e6 {[%clk
0:00:05.1]} 51... h4 {[%clk 0:00:03.8]} 52. Rg1 {[%clk 0:00:05.1]} 52... Rxg1
{[%clk 0:00:03.6]} 0-1

[Event "*** SCC Grand Prix: Titled Tuesday Blitz"]
[Site "Chess.com"]
[Date "2020.07.14"]
[Round "6"]
[White "chito89"]
[Black "ShahMatKanal"]
[Result "1-0"]
[WhiteElo "2795"]
[BlackElo "2504"]
[TimeControl "180+1"]
[EndTime "11:08:10 PDT"]
[Termination "chito89 won on time"]

1. e4 {[%clk 0:03:00.9]} 1... c5 {[%clk 0:02:56.6]} 2. Nf3 {[%clk 0:03:00.3]}
2... Nc6 {[%clk 0:02:55.5]} 3. Bb5 {[%clk 0:02:59.9]} 3... g6 {[%clk 0:02:50.8]}
4. O-O {[%clk 0:02:57.4]} 4... Bg7 {[%clk 0:02:50.1]} 5. Nc3 {[%clk 0:02:57.8]}
5... d6 {[%clk 0:02:41.5]} 6. Re1 {[%clk 0:02:54.3]} 6... Bd7 {[%clk 0:02:35.7]}
7. d3 {[%clk 0:02:45.2]} 7... Nd4 {[%clk 0:02:28]} 8. Bc4 {[%clk 0:02:28.9]}
8... e6 {[%clk 0:02:18.7]} 9. Bf4 {[%clk 0:01:55]} 9... e5 {[%clk 0:02:00.6]}
10. Be3 {[%clk 0:01:40.5]} 10... Nh6 {[%clk 0:01:56.8]} 11. h3 {[%clk
0:01:30.1]} 11... O-O {[%clk 0:01:44.1]} 12. a4 {[%clk 0:01:28.3]} 12... Kh8
{[%clk 0:01:41.6]} 13. Nd5 {[%clk 0:01:05]} 13... f6 {[%clk 0:01:28.9]} 14. c3
{[%clk 0:01:03.5]} 14... Nxf3+ {[%clk 0:01:19.6]} 15. Qxf3 {[%clk 0:01:04.4]}
15... Nf7 {[%clk 0:01:20.5]} 16. b4 {[%clk 0:00:56.2]} 16... cxb4 {[%clk
0:01:11.1]} 17. cxb4 {[%clk 0:00:54.2]} 17... f5 {[%clk 0:01:02.2]} 18. Bd2
{[%clk 0:00:35.1]} 18... f4 {[%clk 0:00:55.2]} 19. Qd1 {[%clk 0:00:29.8]} 19...
Ng5 {[%clk 0:00:50.1]} 20. h4 {[%clk 0:00:15.1]} 20... Ne6 {[%clk 0:00:49.6]}
21. g3 {[%clk 0:00:10]} 21... Nd4 {[%clk 0:00:42.5]} 22. Kg2 {[%clk 0:00:09.8]}
22... f3+ {[%clk 0:00:36.9]} 23. Kh2 {[%clk 0:00:04.8]} 23... Be6 {[%clk
0:00:30.6]} 24. Bg5 {[%clk 0:00:04.8]} 24... Qd7 {[%clk 0:00:30]} 25. Rh1 {[%clk
0:00:05.2]} 25... h6 {[%clk 0:00:27.9]} 26. Be3 {[%clk 0:00:04.8]} 26... Qf7
{[%clk 0:00:27.4]} 27. Kg1 {[%clk 0:00:04.3]} 27... Rac8 {[%clk 0:00:27.3]} 28.
b5 {[%clk 0:00:04.7]} 28... Kh7 {[%clk 0:00:21.6]} 29. Kf1 {[%clk 0:00:05]}
29... a6 {[%clk 0:00:18.5]} 30. bxa6 {[%clk 0:00:04.2]} 30... bxa6 {[%clk
0:00:18.9]} 31. Rc1 {[%clk 0:00:03.9]} 31... Rb8 {[%clk 0:00:17.9]} 32. Bxd4
{[%clk 0:00:04.1]} 32... exd4 {[%clk 0:00:17.7]} 33. Nf4 {[%clk 0:00:04.5]}
33... Bxc4 {[%clk 0:00:17.4]} 34. Rxc4 {[%clk 0:00:05.4]} 34... Rfc8 {[%clk
0:00:13.9]} 35. Rxc8 {[%clk 0:00:04.6]} 35... Rxc8 {[%clk 0:00:14.8]} 36. Qxf3
{[%clk 0:00:05.1]} 36... Rc3 {[%clk 0:00:06.3]} 37. Kg2 {[%clk 0:00:04.9]} 37...
h5 {[%clk 0:00:06.5]} 38. Rb1 {[%clk 0:00:02.5]} 38... Be5 {[%clk 0:00:06.2]}
39. Rb6 {[%clk 0:00:03]} 39... a5 {[%clk 0:00:05.5]} 40. Rb5 {[%clk 0:00:02.6]}
40... Kh6 {[%clk 0:00:03.9]} 41. Rxa5 {[%clk 0:00:03.1]} 41... g5 {[%clk
0:00:02]} 42. hxg5+ {[%clk 0:00:02.4]} 42... Kxg5 {[%clk 0:00:02.9]} 43. Rd5
{[%clk 0:00:02.7]} 43... Kh6 {[%clk 0:00:02.7]} 44. Nh3 {[%clk 0:00:02.6]} 44...
Qxf3+ {[%clk 0:00:02.1]} 45. Kxf3 {[%clk 0:00:03.5]} 45... Rxd3+ {[%clk
0:00:03]} 46. Kg2 {[%clk 0:00:04.4]} 46... Ra3 {[%clk 0:00:03.5]} 47. f4 {[%clk
0:00:05.3]} 47... Bg7 {[%clk 0:00:02.9]} 48. Rxd6+ {[%clk 0:00:05.7]} 48... Kh7
{[%clk 0:00:03.5]} 49. Ng5+ {[%clk 0:00:06.6]} 49... Kg8 {[%clk 0:00:03.6]} 50.
Rd8+ {[%clk 0:00:07.2]} 50... Bf8 {[%clk 0:00:04.1]} 51. Ne6 {[%clk 0:00:07.7]}
51... Kf7 {[%clk 0:00:03.5]} 52. Nxf8 {[%clk 0:00:07.6]} 52... Rxa4 {[%clk
0:00:03.8]} 53. Nh7 {[%clk 0:00:06.9]} 53... Ke7 {[%clk 0:00:03.5]} 54. Rd5
{[%clk 0:00:06.8]} 54... Ra2+ {[%clk 0:00:03.1]} 55. Kh3 {[%clk 0:00:07.2]}
55... Ra4 {[%clk 0:00:02.6]} 56. Ng5 {[%clk 0:00:07.6]} 1-0

[Event "*** SCC Grand Prix: Titled Tuesday Blitz"]
[Site "Chess.com"]
[Date "2020.07.14"]
[Round "6"]
[White "LimaRR"]
[Black "WiktoriaPOL"]
[Result "0-1"]
[WhiteElo "2070"]
[BlackElo "1910"]
[TimeControl "180+1"]
[EndTime "11:08:12 PDT"]
[Termination "WiktoriaPOL won by resignation"]

1. d4 {[%clk 0:03:00.4]} 1... Nf6 {[%clk 0:02:58.5]} 2. Nf3 {[%clk 0:02:58.3]}
2... g6 {[%clk 0:02:58]} 3. Bf4 {[%clk 0:02:56.7]} 3... Bg7 {[%clk 0:02:52.4]}
4. e3 {[%clk 0:02:56.6]} 4... O-O {[%clk 0:02:51.4]} 5. h3 {[%clk 0:02:56.9]}
5... d6 {[%clk 0:02:51.3]} 6. Be2 {[%clk 0:02:56.6]} 6... Nbd7 {[%clk
0:02:51.1]} 7. O-O {[%clk 0:02:56.2]} 7... Qe8 {[%clk 0:02:46.5]} 8. c4 {[%clk
0:02:46.1]} 8... e5 {[%clk 0:02:44]} 9. Bh2 {[%clk 0:02:44.7]} 9... Qe7 {[%clk
0:02:37.7]} 10. Nc3 {[%clk 0:02:43.9]} 10... c6 {[%clk 0:02:30.9]} 11. Rc1
{[%clk 0:02:43.2]} 11... Nh5 {[%clk 0:02:26.3]} 12. dxe5 {[%clk 0:02:29.7]}
12... dxe5 {[%clk 0:02:23.7]} 13. Nd2 {[%clk 0:02:27.5]} 13... Nhf6 {[%clk
0:02:16.5]} 14. Nde4 {[%clk 0:02:25.4]} 14... Nxe4 {[%clk 0:02:13.7]} 15. Nxe4
{[%clk 0:02:26.3]} 15... f5 {[%clk 0:02:06.8]} 16. Nd6 {[%clk 0:02:25.6]} 16...
Rd8 {[%clk 0:02:02.2]} 17. Nxc8 {[%clk 0:02:07.1]} 17... Raxc8 {[%clk
0:01:59.5]} 18. Qb3 {[%clk 0:01:54.8]} 18... Nc5 {[%clk 0:01:56.9]} 19. Qa3
{[%clk 0:01:47.9]} 19... Qf8 {[%clk 0:01:41.1]} 20. Rfd1 {[%clk 0:01:32.2]}
20... a6 {[%clk 0:01:27.2]} 21. b4 {[%clk 0:01:31.7]} 21... Ne6 {[%clk
0:01:15.3]} 22. Qb3 {[%clk 0:01:30.4]} 22... c5 {[%clk 0:01:09.7]} 23. b5 {[%clk
0:01:28.1]} 23... a5 {[%clk 0:01:02.3]} 24. Rd5 {[%clk 0:01:26.6]} 24... b6
{[%clk 0:00:54.6]} 25. Rcd1 {[%clk 0:01:19.7]} 25... Rxd5 {[%clk 0:00:50.4]} 26.
cxd5 {[%clk 0:01:16.3]} 26... Ng5 {[%clk 0:00:41.1]} 27. d6+ {[%clk 0:01:14.5]}
27... Kh8 {[%clk 0:00:35.2]} 28. Qd5 {[%clk 0:01:02]} 28... Qf7 {[%clk
0:00:29.8]} 29. d7 {[%clk 0:00:31]} 29... Rd8 {[%clk 0:00:23.2]} 30. Bxe5 {[%clk
0:00:22.7]} 30... Qxd5 {[%clk 0:00:14.9]} 31. Bxg7+ {[%clk 0:00:21.1]} 31...
Kxg7 {[%clk 0:00:15.8]} 32. Rxd5 {[%clk 0:00:21.4]} 32... Nf7 {[%clk 0:00:08.9]}
33. f4 {[%clk 0:00:10.8]} 33... Kf6 {[%clk 0:00:06.6]} 34. Bf3 {[%clk
0:00:08.6]} 34... Ke7 {[%clk 0:00:05.8]} 35. g4 {[%clk 0:00:02.2]} 35... Rxd7
{[%clk 0:00:03]} 36. gxf5 {[%clk 0:00:01.6]} 36... Rxd5 {[%clk 0:00:03]} 37.
Bxd5 {[%clk 0:00:02.4]} 37... gxf5 {[%clk 0:00:03.4]} 38. Kf2 {[%clk 0:00:03]}
38... Nd6 {[%clk 0:00:03]} 39. Kf3 {[%clk 0:00:02.8]} 39... h6 {[%clk
0:00:02.5]} 40. h4 {[%clk 0:00:03.4]} 40... Kf6 {[%clk 0:00:02.7]} 41. Bc6
{[%clk 0:00:03.7]} 41... Ke6 {[%clk 0:00:01.8]} 42. e4 {[%clk 0:00:04]} 42...
fxe4+ {[%clk 0:00:01.7]} 43. Bxe4 {[%clk 0:00:04.9]} 43... Kf6 {[%clk
0:00:01.8]} 44. Bd5 {[%clk 0:00:04.8]} 44... Nxb5 {[%clk 0:00:01.9]} 45. Bc4
{[%clk 0:00:04.5]} 45... Nd4+ {[%clk 0:00:02.2]} 46. Ke4 {[%clk 0:00:04.4]}
46... b5 {[%clk 0:00:02.6]} 47. Kd5 {[%clk 0:00:05.3]} 47... bxc4 {[%clk
0:00:02.3]} 48. Kxc5 {[%clk 0:00:06.2]} 48... c3 {[%clk 0:00:02.3]} 49. Kxd4
{[%clk 0:00:07.1]} 49... c2 {[%clk 0:00:02.1]} 50. Kd3 {[%clk 0:00:08]} 50...
c1=Q {[%clk 0:00:03]} 51. Kd4 {[%clk 0:00:07.3]} 51... Qa3 {[%clk 0:00:03.7]}
52. Ke4 {[%clk 0:00:07.5]} 52... Qxa2 {[%clk 0:00:04.4]} 0-1

[Event "*** SCC Grand Prix: Titled Tuesday Blitz"]
[Site "Chess.com"]
[Date "2020.07.14"]
[Round "6"]
[White "Shubinkirill2003"]
[Black "K-Nygren"]
[Result "1-0"]
[WhiteElo "2646"]
[BlackElo "2473"]
[TimeControl "180+1"]
[EndTime "11:08:13 PDT"]
[Termination "Shubinkirill2003 won by checkmate"]

1. e4 {[%clk 0:03:00.9]} 1... c5 {[%clk 0:02:59.6]} 2. Nf3 {[%clk 0:03:00.8]}
2... d6 {[%clk 0:02:59.5]} 3. Bb5+ {[%clk 0:02:58.1]} 3... Bd7 {[%clk
0:02:59.3]} 4. a4 {[%clk 0:02:57.7]} 4... Nc6 {[%clk 0:02:58.8]} 5. O-O {[%clk
0:02:56.6]} 5... Nf6 {[%clk 0:02:57.7]} 6. Re1 {[%clk 0:02:56.5]} 6... e5 {[%clk
0:02:56.4]} 7. c3 {[%clk 0:02:56.1]} 7... g5 {[%clk 0:02:56.1]} 8. d4 {[%clk
0:02:28.8]} 8... g4 {[%clk 0:02:54.3]} 9. Nh4 {[%clk 0:02:25]} 9... cxd4 {[%clk
0:02:44.2]} 10. Bxc6 {[%clk 0:02:19.7]} 10... Bxc6 {[%clk 0:02:43.4]} 11. cxd4
{[%clk 0:02:20.2]} 11... Nxe4 {[%clk 0:02:32.9]} 12. Qxg4 {[%clk 0:02:03.4]}
12... Rg8 {[%clk 0:02:12.3]} 13. Qxg8 {[%clk 0:01:53.8]} 13... Qxh4 {[%clk
0:02:11.3]} 14. Be3 {[%clk 0:01:36.3]} 14... O-O-O {[%clk 0:01:43]} 15. Qxf7
{[%clk 0:01:35.1]} 15... Be7 {[%clk 0:01:33.8]} 16. Nc3 {[%clk 0:01:08.6]} 16...
Ng5 {[%clk 0:01:05.3]} 17. Bxg5 {[%clk 0:00:41]} 17... Qxg5 {[%clk 0:00:59.8]}
18. Nd5 {[%clk 0:00:38.4]} 18... Rd7 {[%clk 0:00:38.7]} 19. Rac1 {[%clk
0:00:22.2]} 19... Bd8 {[%clk 0:00:27.4]} 20. Qe6 {[%clk 0:00:21.2]} 20... Qg7
{[%clk 0:00:15.7]} 21. b4 {[%clk 0:00:17.1]} 21... Kb8 {[%clk 0:00:13.2]} 22. b5
{[%clk 0:00:15.9]} 22... Bxd5 {[%clk 0:00:11.7]} 23. Qxd5 {[%clk 0:00:15.6]}
23... Bb6 {[%clk 0:00:11]} 24. dxe5 {[%clk 0:00:14.4]} 24... dxe5 {[%clk
0:00:09.9]} 25. Qxe5+ {[%clk 0:00:14.3]} 25... Qxe5 {[%clk 0:00:09.5]} 26. Rxe5
{[%clk 0:00:14.3]} 26... a6 {[%clk 0:00:10.4]} 27. bxa6 {[%clk 0:00:13.6]} 27...
bxa6 {[%clk 0:00:11.3]} 28. Rb1 {[%clk 0:00:13.5]} 28... Ka7 {[%clk 0:00:11.4]}
29. Re4 {[%clk 0:00:13.1]} 29... a5 {[%clk 0:00:11.3]} 30. h4 {[%clk 0:00:12.8]}
30... Bd4 {[%clk 0:00:10.7]} 31. g3 {[%clk 0:00:11.5]} 31... Bc5 {[%clk
0:00:09.9]} 32. Kg2 {[%clk 0:00:11.6]} 32... Bb4 {[%clk 0:00:09.2]} 33. Rc1
{[%clk 0:00:10.1]} 33... Rd2 {[%clk 0:00:08.8]} 34. Re6 {[%clk 0:00:09.1]} 34...
Rd7 {[%clk 0:00:06.3]} 35. Rc4 {[%clk 0:00:08.2]} 35... Rf7 {[%clk 0:00:06.1]}
36. h5 {[%clk 0:00:08]} 36... Rb7 {[%clk 0:00:04.9]} 37. h6 {[%clk 0:00:08]}
37... Rf7 {[%clk 0:00:04.9]} 38. Rec6 {[%clk 0:00:08.1]} 38... Kb7 {[%clk
0:00:04.7]} 39. g4 {[%clk 0:00:08.3]} 39... Rf8 {[%clk 0:00:03.8]} 40. f4 {[%clk
0:00:08]} 40... Ba3 {[%clk 0:00:04]} 41. Kf3 {[%clk 0:00:06.8]} 41... Bb2 {[%clk
0:00:03.8]} 42. R6c5 {[%clk 0:00:06.4]} 42... Ba3 {[%clk 0:00:03.2]} 43. Rb5+
{[%clk 0:00:06.5]} 43... Ka6 {[%clk 0:00:03.5]} 44. Rc6+ {[%clk 0:00:06.7]}
44... Ka7 {[%clk 0:00:04.3]} 45. Rxa5+ {[%clk 0:00:07.1]} 45... Kb7 {[%clk
0:00:04.8]} 46. Rc4 {[%clk 0:00:07]} 46... Be7 {[%clk 0:00:05.7]} 47. Rb5+
{[%clk 0:00:07.1]} 47... Ka6 {[%clk 0:00:06.6]} 48. g5 {[%clk 0:00:07.6]} 48...
Bd8 {[%clk 0:00:05.8]} 49. Kg4 {[%clk 0:00:07.8]} 49... Ka7 {[%clk 0:00:06.5]}
50. f5 {[%clk 0:00:07.6]} 50... Rg8 {[%clk 0:00:07.4]} 51. f6 {[%clk 0:00:06.5]}
51... Bxf6 {[%clk 0:00:07.6]} 52. Rc7+ {[%clk 0:00:06.7]} 52... Ka6 {[%clk
0:00:07.6]} 53. Rc6+ {[%clk 0:00:06.9]} 53... Ka7 {[%clk 0:00:07.3]} 54. Rxf6
{[%clk 0:00:07.8]} 54... Ka8 {[%clk 0:00:07.2]} 55. Ra6# {[%clk 0:00:07]} 1-0